fUSD/lending_fUSD_20260105
["ID","MTS","AMOUNT","RATE_DAILY","PERIOD"]
[400477092,1767630539463,7291.46,0.00032876,120]
[400477093,1767630539618,7291.46,0.00032876,120]
[400477094,1767630539868,7291.46,0.00032876,120]
[400477095,1767630540119,7291.46,0.00032876,120]
[400477096,1767630540195,500.0,0.00032876,120]
[400477097,1767630540410,7291.46,0.00032876,120]
[400477098,1767630540651,7291.46,0.00032876,120]
[400477099,1767630540971,500.0,0.00032876,120]
[400477100,1767630541045,7291.46,0.00032876,120]
[400477101,1767630541116,500.0,0.00032876,120]
[400477102,1767630541183,500.0,0.00032876,120]
[400477103,1767630541251,500.0,0.00032876,120]
[400477104,1767630541323,7291.46,0.00032876,120]
[400477105,1767630541392,500.0,0.00032876,120]
[400477106,1767630541480,500.0,0.00032876,120]
[400477107,1767630541548,500.0,0.00032876,120]
[400477108,1767630541621,7291.46,0.00032876,120]
[400477109,1767630541692,500.0,0.00032876,120]
[400477110,1767630541762,500.0,0.00032876,120]
[400477111,1767630541833,7291.66420469,0.00032876,120]
[400477112,1767630541903,621.23285957,0.00032876,120]
[400477113,1767630541982,500.0,0.00032876,120]
[400477114,1767630542199,511.38984837,0.00032876,120]
[400477115,1767630544376,500.0,0.00032876,120]
[400477116,1767630544613,500.0,0.00032876,120]
[400477117,1767630544684,500.0,0.00032876,120]
[400477118,1767630544872,346.70590311,0.00032876,120]
[400477119,1767630545187,500.0,0.00032876,120]
[400477120,1767630545442,500.0,0.00032876,120]
[400477121,1767630545542,500.0,0.00032876,120]
[400477122,1767630545782,500.0,0.00032876,120]
[400477123,1767630545851,500.0,0.00032876,120]
[400477124,1767630546029,500.0,0.00032876,120]
[400477125,1767630546096,500.0,0.00032876,120]
[400477126,1767630546255,500.0,0.00032876,120]
[400477127,1767630546323,500.0,0.00032876,120]
[400477128,1767630546510,500.0,0.00032876,120]
[400477129,1767630546579,500.0,0.00032876,120]
[400477130,1767630546740,500.0,0.00032876,120]
[400477131,1767630546817,500.0,0.00032876,120]
[400477132,1767630546994,500.0,0.00032876,120]
[400477133,1767630547060,500.0,0.00032876,120]
[400477134,1767630547198,500.0,0.00032876,120]
[400477135,1767630547266,500.0,0.00032876,120]
[400477136,1767630547337,500.0,0.00032876,120]
[400477137,1767630547444,500.0,0.00032876,120]
[400477138,1767630547516,500.0,0.00032876,120]
[400477139,1767630547587,500.0,0.00032876,120]
[400477140,1767630547682,500.0,0.00032876,120]
[400477141,1767630547755,500.0,0.00032876,120]
[400477142,1767630547931,500.0,0.00032876,120]
[400477143,1767630548000,561.59019402,0.00032876,120]
[400477144,1767630548170,500.0,0.00032876,120]
[400477145,1767630548408,500.0,0.00032876,120]
[400477146,1767630548654,188.38773612,0.00032876,120]
[400477147,1767630549460,593.16312734,0.00032876,120]
[400477148,1767630549874,500.0,0.00032876,120]
[400477149,1767630550099,500.0,0.00032876,120]
[400477150,1767630550337,500.0,0.00032876,120]
[400477151,1767630550436,1466.09,0.00032876,120]
[400477152,1767630550569,500.0,0.00032876,120]
[400477153,1767630550672,1466.09,0.00032876,120]
[400477154,1767630550800,560.76885596,0.00032876,120]
[400477155,1767630550911,1466.09,0.00032876,120]
[400477156,1767630551360,1466.09,0.00032876,120]
[400477157,1767630551463,1466.09,0.00032876,120]
[400477158,1767630551621,1466.09,0.00032876,120]
[400477159,1767630551833,500.0,0.00032876,120]
[400477160,1767630551899,1466.09,0.00032876,120]
[400477161,1767630552096,1466.09,0.00032876,120]
[400477162,1767630552163,500.0,0.00032876,120]
[400477163,1767630552354,1466.09,0.00032876,120]
[400477164,1767630552591,1466.09,0.00032876,120]
[400477165,1767630552776,500.0,0.00032876,120]
[400477166,1767630552844,1466.09,0.00032876,120]
[400477167,1767630552911,500.0,0.00032876,120]
[400477168,1767630553054,1466.09,0.00032876,120]
[400477169,1767630553123,500.0,0.00032876,120]
[400477170,1767630553192,918.37,0.00032876,120]
[400477171,1767630553262,649.79871769,0.00032876,120]
[400477172,1767630553335,1466.09,0.00032876,120]
[400477173,1767630553412,500.0,0.00032876,120]
[400477174,1767630553480,918.37,0.00032876,120]
[400477175,1767630553546,1466.09,0.00032876,120]
[400477176,1767630553614,338.0462059,0.00032876,120]
[400477177,1767630553687,918.37,0.00032876,120]
[400477178,1767630553819,918.37,0.00032876,120]
[400477179,1767630553890,1466.09,0.00032876,120]
[400477180,1767630554071,918.37,0.00032876,120]
[400477181,1767630554140,1466.09,0.00032876,120]
[400477182,1767630554289,500.0,0.00032876,120]
[400477183,1767630554357,918.37,0.00032876,120]
[400477184,1767630554427,1466.09,0.00032876,120]
[400477185,1767630554572,918.37,0.00032876,120]
[400477186,1767630554646,1466.09,0.00032876,120]
[400477187,1767630554808,918.37,0.00032876,120]
[400477188,1767630554915,1466.09,0.00032876,120]
[400477189,1767630555082,918.37,0.00032876,120]
[400477190,1767630555154,1466.09,0.00032876,120]
[400477191,1767630555312,918.37,0.00032876,120]
[400477192,1767630555395,1466.09,0.00032876,120]
[400477193,1767630555559,918.37,0.00032876,120]
[400477194,1767630555634,1466.09,0.00032876,120]
[400477195,1767630555818,918.37,0.00032876,120]
[400477196,1767630555892,1466.09,0.00032876,120]
[400477197,1767630556083,918.37,0.00032876,120]
[400477198,1767630556150,1466.27199587,0.00032876,120]
[400477199,1767630556415,918.37,0.00032876,120]
[400477200,1767630556670,918.37,0.00032876,120]
[400477201,1767630556899,918.37,0.00032876,120]
[400477202,1767630557507,918.37,0.00032876,120]
[400477203,1767630557785,918.37,0.00032876,120]
[400477204,1767630558044,918.37,0.00032876,120]
[400477205,1767630558467,918.37,0.00032876,120]
[400477206,1767630558545,918.37,0.00032876,120]
[400477207,1767630558617,500.0,0.00032876,120]
[400477208,1767630558749,918.37,0.00032876,120]
[400477209,1767630558820,500.0,0.00032876,120]
[400477210,1767630558992,918.37,0.00032876,120]
[400477211,1767630559064,500.0,0.00032876,120]
[400477212,1767630559175,500.0,0.00032876,120]
[400477213,1767630559246,918.54435356,0.00032876,120]
[400477214,1767630559317,500.0,0.00032876,120]
[400477215,1767630559406,468.80166409,0.00032876,120]
[400477216,1767630559499,500.0,0.00032876,120]
[400477217,1767630559582,500.0,0.00032876,120]
[400477218,1767630559670,500.0,0.00032876,120]
[400477219,1767630559794,301.19055004,0.00032876,120]
[400477220,1767630559912,500.0,0.00032876,120]
[400477221,1767630560235,500.0,0.00032876,120]
[400477222,1767630560471,477.41821142,0.00032876,120]
[400477223,1767630561251,500.0,0.00032876,120]
[400477224,1767630561639,500.0,0.00032876,120]
[400477225,1767630561772,500.0,0.00032876,120]
[400477226,1767630562007,500.0,0.00032876,120]
[400477227,1767630562360,500.0,0.00032876,120]
[400477228,1767630562633,500.0,0.00032876,120]
[400477229,1767630562839,500.0,0.00032876,120]
[400477230,1767630562920,500.0,0.00032876,120]
[400477231,1767630563067,500.0,0.00032876,120]
[400477232,1767630563153,500.0,0.00032876,120]
[400477233,1767630563390,500.0,0.00032876,120]
[400477234,1767630563488,500.0,0.00032876,120]
[400477235,1767630563652,500.0,0.00032876,120]
[400477236,1767630563734,500.0,0.00032876,120]
[400477237,1767630563912,500.0,0.00032876,120]
[400477238,1767630564174,500.0,0.00032876,120]
[400477239,1767630564461,500.0,0.00032876,120]
[400477240,1767630564722,500.0,0.00032876,120]
[400477241,1767630564959,500.0,0.00032876,120]
[400477242,1767630565334,326.68622276,0.00032876,120]
[400477243,1767630565495,528.53675069,0.00032876,120]
[400477244,1767630567776,203.94632005,0.00032876,120]
[400477245,1767630568808,500.0,0.00032876,120]
[400477246,1767630569252,202.46976302,0.00032876,120]
[400477247,1767630569415,213.62022462,0.00032876,120]
[400477248,1767630571016,397.72684914,0.00032876,120]
[400477249,1767630571367,500.0,0.00032876,120]
[400477250,1767630571875,500.0,0.00032876,120]
[400477251,1767630571967,500.0,0.00032876,120]
[400477252,1767630572123,500.0,0.00032876,120]
[400477253,1767630572348,500.0,0.00032876,120]
[400477254,1767630572576,500.0,0.00032876,120]
[400477255,1767630572868,500.0,0.00032876,120]
[400477256,1767630572945,211.78873821,0.00032876,120]
[400477257,1767630573133,500.0,0.00032876,120]
[400477258,1767630573383,500.0,0.00032876,120]
[400477259,1767630573617,500.0,0.00032876,120]
[400477260,1767630573916,500.0,0.00032876,120]
[400477261,1767630574126,484.33003321,0.00032876,120]
[400477262,1767630574196,500.0,0.00032876,120]
[400477263,1767630574420,500.0,0.00032876,120]
[400477264,1767630574765,221.90961417,0.00032876,120]
[400477265,1767630576242,500.0,0.00032876,120]
[400477266,1767630576490,500.0,0.00032876,120]
[400477267,1767630576725,500.0,0.00032876,120]
[400477268,1767630576960,500.0,0.00032876,120]
[400477269,1767630577231,500.0,0.00032876,120]
[400477270,1767630577467,585.03761657,0.00032876,120]
[400477271,1767630577539,212.83899681,0.00032876,120]
[400477272,1767630578336,500.0,0.00032876,120]
[400477273,1767630578570,500.0,0.00032876,120]
[400477274,1767630578840,500.0,0.00032876,120]
[400477275,1767630579093,500.0,0.00032876,120]
[400477276,1767630579342,500.0,0.00032876,120]
[400477277,1767630579413,449.0591056,0.00032876,120]
[400477278,1767630579560,370.41851906,0.00032876,120]
[400477279,1767630579742,500.0,0.00032876,120]
[400477280,1767630579990,500.0,0.00032876,120]
[400477281,1767630580065,500.0,0.00032876,120]
[400477282,1767630580259,500.0,0.00032876,120]
[400477283,1767630580326,500.0,0.00032876,120]
[400477284,1767630580513,500.0,0.00032876,120]
[400477285,1767630580581,287.84003755,0.00032876,120]
[400477286,1767630580751,500.0,0.00032876,120]
[400477287,1767630583022,500.0,0.00032876,120]
[400477288,1767630583379,500.0,0.00032876,120]
[400477289,1767630583570,500.0,0.00032876,120]
[400477290,1767630583833,500.0,0.00032876,120]
[400477291,1767630584087,500.0,0.00032876,120]
[400477292,1767630584332,426.43460942,0.00032876,120]
[400477293,1767630584617,447.2805464,0.00032876,120]
[400477294,1767630585244,500.0,0.00032876,120]
[400477295,1767630585483,537.97653196,0.00032876,120]
[400477296,1767630586355,204.54435911,0.00032876,120]
[400477297,1767630586460,262.45861451,0.00032876,120]
[400477298,1767630588276,500.0,0.00032876,120]
[400477299,1767630588529,500.0,0.00032876,120]
[400477300,1767630588767,500.0,0.00032876,120]
[400477301,1767630588995,540.18047179,0.00032876,120]
[400477302,1767630589078,500.0,0.00032876,120]
[400477303,1767630589242,500.0,0.00032876,120]
[400477304,1767630589480,500.0,0.00032876,120]
[400477305,1767630589718,292.01448419,0.00032876,120]
[400477306,1767630593661,500.0,0.00032876,120]
[400477307,1767630593912,500.0,0.00032876,120]
[400477308,1767630593992,500.0,0.00032876,120]
[400477309,1767630594155,500.0,0.00032876,120]
[400477310,1767630594227,465.53524145,0.00032876,120]
[400477311,1767630594401,500.0,0.00032876,120]
[400477312,1767630594676,500.0,0.00032876,120]
[400477313,1767630594925,176.38240512,0.00032876,120]
[400477314,1767630600385,500.0,0.00032876,120]
[400477315,1767630600628,500.0,0.00032876,120]
[400477316,1767630600885,601.68932927,0.00032876,120]
[400477317,1767630600958,500.0,0.00032876,120]
[400477318,1767630601160,500.0,0.00032876,120]
[400477319,1767630601397,376.24950753,0.00032876,120]
[400477320,1767630604755,500.0,0.00032876,120]
[400477321,1767630604992,271.89592893,0.00032876,120]
[400477322,1767630606264,500.0,0.00032876,120]
[400477323,1767630606342,500.0,0.00032876,120]
[400477324,1767630606489,500.0,0.00032876,120]
[400477325,1767630606639,500.0,0.00032876,120]
[400477326,1767630606991,500.0,0.00032876,120]
[400477327,1767630607079,500.0,0.00032876,120]
[400477328,1767630607159,500.0,0.00032876,120]
[400477329,1767630607307,587.94161859,0.00032876,120]
[400477330,1767630607475,500.0,0.00032876,120]
[400477331,1767630607743,150.62769992,0.00032876,120]
[400477332,1767630607820,500.0,0.00032876,120]
[400477333,1767630608040,500.0,0.00032876,120]
[400477334,1767630608278,500.0,0.00032876,120]
[400477335,1767630608514,500.0,0.00032876,120]
[400477336,1767630608747,500.0,0.00032876,120]
[400477337,1767630608988,500.0,0.00032876,120]
[400477338,1767630609075,500.0,0.00032876,120]
[400477339,1767630609211,506.97176544,0.00032876,120]
[400477340,1767630609350,500.0,0.00032876,120]
[400477341,1767630610051,246.36141145,0.00032876,120]
[400477342,1767630610911,491.82222299,0.00032876,120]
[400477343,1767630611345,500.0,0.00032876,120]
[400477344,1767630611679,155.35671554,0.00032876,120]
[400477345,1767630611979,500.0,0.00032876,120]
[400477346,1767630612206,463.71586326,0.00032876,120]
[400477347,1767630612870,500.0,0.00032876,120]
[400477348,1767630613130,500.0,0.00032876,120]
[400477349,1767630613509,500.0,0.00032876,120]
[400477350,1767630613637,573.49464357,0.00032876,120]
[400477351,1767630616345,500.0,0.00032876,120]
[400477352,1767630616584,500.0,0.00032876,120]
[400477353,1767630616835,500.0,0.00032876,120]
[400477354,1767630617083,382.08992703,0.00032876,120]
[400477355,1767630617152,645.77292162,0.00032876,120]
[400477356,1767630618173,500.0,0.00032876,120]
[400477357,1767630618265,284.45877662,0.00032876,120]
[400477358,1767630618408,500.0,0.00032876,120]
[400477359,1767630618666,261.74965602,0.00032876,120]
[400477360,1767630619342,500.0,0.00032876,120]
[400477361,1767630619600,500.0,0.00032876,120]
[400477362,1767630619841,424.32067931,0.00032876,120]
[400477363,1767630623760,500.0,0.00032876,120]
[400477364,1767630623854,500.0,0.00032876,120]
[400477365,1767630623929,279.39868848,0.00032876,120]
[400477366,1767630624021,642.45852136,0.00032876,120]
[400477367,1767630624110,500.0,0.00032876,120]
[400477368,1767630624435,500.0,0.00032876,120]
[400477369,1767630624672,500.0,0.00032876,120]
[400477370,1767630624906,500.0,0.00032876,120]
[400477371,1767630625144,434.93917424,0.00032876,120]
[400477372,1767630625819,500.0,0.00032876,120]
[400477373,1767630626090,500.0,0.00032876,120]
[400477374,1767630626329,500.0,0.00032876,120]
[400477375,1767630626585,500.0,0.00032876,120]
[400477376,1767630626830,500.0,0.00032876,120]
[400477377,1767630627060,500.0,0.00032876,120]
[400477378,1767630627206,500.0,0.00032876,120]
[400477379,1767630627297,500.0,0.00032876,120]
[400477380,1767630627659,500.0,0.00032876,120]
[400477381,1767630627731,522.39989484,0.00032876,120]
[400477382,1767630627837,500.0,0.00032876,120]
[400477383,1767630627923,500.0,0.00032876,120]
[400477384,1767630628167,500.0,0.00032876,120]
[400477385,1767630628332,484.99659113,0.00032876,120]
[400477386,1767630628424,500.0,0.00032876,120]
[400477387,1767630628682,500.0,0.00032876,120]
[400477388,1767630628848,363.38286471,0.00032876,120]
[400477389,1767630628973,500.0,0.00032876,120]
[400477390,1767630629184,386.05010357,0.00032876,120]
[400477391,1767630629715,500.0,0.00032876,120]
[400477392,1767630629973,500.0,0.00032876,120]
[400477393,1767630630233,500.0,0.00032876,120]
[400477394,1767630630476,500.0,0.00032876,120]
[400477395,1767630630729,500.0,0.00032876,120]
[400477396,1767630630862,570.53722,0.00032876,120]
[400477397,1767630630981,500.0,0.00032876,120]
[400477400,1767630631254,500.0,0.00032876,120]
[400477403,1767630631360,-289.0,0.00016504,2]
[400477405,1767630631370,-320.653476,0.00016504,2]
[400477407,1767630631382,-110.526524,0.00016504,2]
[400477409,1767630631392,-300.09,0.00016585,2]
[400477410,1767630631402,-500.0,0.00016604,2]
[400477411,1767630631412,-166.66,0.00016609,2]
[400477412,1767630631422,-559.07,0.00016634,2]
[400477413,1767630631431,-153.33023231,0.00016642,2]
[400477414,1767630631446,-6.07976769,0.00016642,2]
[400477415,1767630631455,-2397.82,0.00016657,2]
[400477416,1767630631465,-151.54352166,0.00016664,5]
[400477417,1767630631477,-833.0,0.0001672,2]
[400477418,1767630631486,-1063.38064108,0.00016733,2]
[400477419,1767630631497,-588.05522917,0.00016733,2]
[400477420,1767630631513,-4573.2,0.00016733,2]
[400477421,1767630631586,500.0,0.00032876,120]
[400477422,1767630631599,-14034.27471683,0.00016733,2]
[400477423,1767630631611,-12448.26322807,0.00016733,2]
[400477424,1767630631683,500.0,0.00032876,120]
[400477425,1767630631701,-557.86958998,0.00016733,2]
[400477426,1767630631713,-5213.81017421,0.00016733,2]
[400477427,1767630631724,-1345.04317917,0.00016733,2]
[400477428,1767630631736,-4111.23240129,0.00016733,2]
[400477429,1767630631749,-4150.65016014,0.00016733,2]
[400477430,1767630631825,500.0,0.00032876,120]
[400477431,1767630631898,500.0,0.00032876,120]
[400477432,1767630632099,500.0,0.00032876,120]
[400477433,1767630632215,500.0,0.00032876,120]
[400477434,1767630632650,500.0,0.00032876,120]
[400477435,1767630632722,500.0,0.00032876,120]
[400477436,1767630632837,500.0,0.00032876,120]
[400477437,1767630632909,500.0,0.00032876,120]
[400477438,1767630632994,500.0,0.00032876,120]
[400477439,1767630633070,500.0,0.00032876,120]
[400477440,1767630633168,500.0,0.00032876,120]
[400477441,1767630633244,500.0,0.00032876,120]
[400477442,1767630633343,500.0,0.00032876,120]
[400477443,1767630633450,284.50789873,0.00032876,120]
[400477444,1767630633525,524.75424418,0.00032876,120]
[400477445,1767630633597,500.0,0.00032876,120]
[400477446,1767630634148,500.0,0.00032876,120]
[400477447,1767630634375,500.0,0.00032876,120]
[400477448,1767630634539,500.0,0.00032876,120]
[400477449,1767630634666,500.0,0.00032876,120]
[400477450,1767630634783,500.0,0.00032876,120]
[400477451,1767630634966,445.88703177,0.00032876,120]
[400477452,1767630635299,500.0,0.00032876,120]
[400477453,1767630635435,500.0,0.00032876,120]
[400477454,1767630635519,500.0,0.00032876,120]
[400477455,1767630635598,500.0,0.00032876,120]
[400477456,1767630635668,500.0,0.00032876,120]
[400477457,1767630635789,500.0,0.00032876,120]
[400477458,1767630635882,500.0,0.00032876,120]
[400477459,1767630635970,500.0,0.00032876,120]
[400477460,1767630636037,500.0,0.00032876,120]
[400477461,1767630636132,500.0,0.00032876,120]
[400477462,1767630636220,500.0,0.00032876,120]
[400477463,1767630636290,500.0,0.00032876,120]
[400477464,1767630636361,283.52050016,0.00032876,120]
[400477465,1767630636433,500.0,0.00032876,120]
[400477466,1767630636534,500.0,0.00032876,120]
[400477467,1767630636610,495.30593131,0.00032876,120]
[400477468,1767630636711,500.0,0.00032876,120]
[400477469,1767630636784,308.69467908,0.00032876,120]
[400477470,1767630636853,500.0,0.00032876,120]
[400477471,1767630636950,500.0,0.00032876,120]
[400477472,1767630637093,305.6497262,0.00032876,120]
[400477474,1767630637160,500.0,0.00032876,120]
[400477475,1767630637229,500.0,0.00032876,120]
[400477477,1767630637366,500.38912862,0.00032876,120]
[400477478,1767630637433,516.98428895,0.00032876,120]
[400477479,1767630637625,-191.22010938,0.00016732,2]
[400477480,1767630637636,-192.25894012,0.00016732,2]
[400477481,1767630637646,-500.0,0.00016732,2]
[400477482,1767630637657,-500.0,0.00016732,2]
[400477483,1767630637666,-500.0,0.00016732,2]
[400477484,1767630637677,-500.0,0.00016732,2]
[400477485,1767630637687,-500.0,0.00016732,2]
[400477486,1767630637698,-500.0,0.00016732,2]
[400477487,1767630637708,-500.0,0.00016732,2]
[400477488,1767630637718,-500.0,0.00016732,2]
[400477489,1767630637729,-500.0,0.00016732,2]
[400477490,1767630637743,-500.0,0.00016732,2]
[400477491,1767630637754,-500.0,0.00016732,2]
[400477492,1767630637764,-500.0,0.00016732,2]
[400477493,1767630637774,-500.0,0.00016732,2]
[400477494,1767630637784,-500.0,0.00016732,2]
[400477495,1767630637794,-500.0,0.00016732,2]
[400477496,1767630637804,-500.0,0.00016732,2]
[400477499,1767630638130,-500.0,0.00016732,2]
[400477500,1767630638140,-554.03545874,0.00016732,2]
[400477501,1767630638150,-500.0,0.00016732,2]
[400477502,1767630638160,-500.0,0.00016732,2]
[400477503,1767630638170,-500.0,0.00016732,2]
[400477504,1767630638181,-491.26724214,0.00016732,2]
[400477505,1767630638191,-500.0,0.00016732,2]
[400477506,1767630638204,-500.0,0.00016732,2]
[400477507,1767630638215,-500.0,0.00016732,2]
[400477508,1767630638225,-500.0,0.00016732,2]
[400477509,1767630638237,-500.0,0.00016732,2]
[400477510,1767630638248,-500.0,0.00016732,2]
[400477511,1767630638258,-500.0,0.00016732,2]
[400477512,1767630638269,-500.0,0.00016732,2]
[400477513,1767630638279,-500.0,0.00016732,2]
[400477514,1767630638289,-500.0,0.00016732,2]
[400477515,1767630638299,-179976.61466963,0.00016733,2]
[400477516,1767630638311,-8916.34356138,0.00016733,2]
[400477517,1767630638322,-39715.89921707,0.00016733,2]
[400477518,1767630638334,-472749.10223198,0.00016733,2]
[400477519,1767630638343,-1200.0,0.00016743,2]
[400477520,1767630638353,-451.0,0.00016832,2]
[400477521,1767630638363,-754.32,0.00016833,2]
[400477522,1767630638372,-543.426,0.00016833,2]
[400477523,1767630638382,-168.0,0.00016833,2]
[400477524,1767630638392,-157.32,0.00016857,2]
[400477525,1767630638403,-241.0,0.0001689,2]
[400477526,1767630638414,-166.66,0.00016945,2]
[400477527,1767630638423,-168.0,0.00016967,2]
[400477528,1767630638433,-300.0,0.00016979,2]
[400477529,1767630638443,-300.0,0.00016979,2]
[400477530,1767630638453,-168.0,0.0001698,2]
[400477531,1767630638463,-300.0,0.00016985,2]
[400477532,1767630638474,-3104.09,0.00016986,2]
[400477533,1767630638484,-150.0,0.0001707,2]
[400477534,1767630638504,-213.0,0.0001707,2]
[400477535,1767630638513,-302.46,0.0001707,2]
[400477536,1767630638523,-350.65015482,0.0001707,2]
[400477537,1767630638534,-574.12855637,0.00017099,2]
[400477538,1767630638544,-754.32,0.00017107,2]
[400477539,1767630638554,-168.0,0.00017151,2]
[400477540,1767630638564,-500.0,0.00017172,2]
[400477541,1767630638574,-256.01043912,0.00017173,2]
[400477542,1767630638584,-500.0,0.00017173,2]
[400477543,1767630638593,-500.0,0.00017173,2]
[400477544,1767630638603,-500.0,0.00017173,2]
[400477545,1767630638613,-500.0,0.00017173,2]
[400477546,1767630638623,-321.0804,0.00017173,2]
[400477547,1767630638641,-527.87076503,0.00017173,2]
[400477548,1767630638653,-500.0,0.00017173,2]
[400477549,1767630638664,-500.0,0.00017173,2]
[400477550,1767630638674,-500.0,0.00017173,2]
[400477551,1767630638685,-500.0,0.00017173,2]
[400477552,1767630638695,-632.9385196,0.00017173,2]
[400477553,1767630638705,-500.0,0.00017173,2]
[400477554,1767630638716,-500.0,0.00017173,2]
[400477555,1767630638727,-438.02307152,0.00017173,2]
[400477556,1767630638738,-500.0,0.00017173,2]
[400477557,1767630638748,-485.4502898,0.00017173,2]
[400477558,1767630638758,-163.22919039,0.00017173,2]
[400477559,1767630638768,-500.0,0.00017173,2]
[400477560,1767630638778,-500.0,0.00017173,2]
[400477561,1767630638788,-162.40983978,0.00017173,2]
[400477562,1767630638798,-500.0,0.00017173,2]
[400477563,1767630638809,-168.98066196,0.00017173,2]
[400477564,1767630638819,-500.0,0.00017173,2]
[400477565,1767630638828,-236.34985167,0.00017173,2]
[400477566,1767630638839,-500.0,0.00017173,2]
[400477567,1767630638849,-305.36879168,0.00017173,2]
[400477568,1767630638858,-500.0,0.00017173,2]
[400477569,1767630638868,-500.0,0.00017173,2]
[400477570,1767630638879,-500.0,0.00017173,2]
[400477571,1767630638889,-500.0,0.00017173,2]
[400477572,1767630638900,-500.0,0.00017173,2]
[400477573,1767630638909,-500.0,0.00017173,2]
[400477574,1767630638920,-238.11,0.00017204,2]
[400477575,1767630638930,-151.0,0.00017204,2]
[400477576,1767630638941,-151.0,0.00017206,2]
[400477577,1767630638955,-151.0,0.00017206,2]
[400477578,1767630638965,-151.0,0.00017208,2]
[400477579,1767630638975,-151.0,0.00017208,2]
[400477580,1767630638986,-151.0,0.00017212,2]
[400477581,1767630638997,-151.0,0.00017212,2]
[400477582,1767630639008,-166.66,0.0001728,2]
[400477583,1767630639017,-463.0,0.00017349,2]
[400477584,1767630639033,-827.0,0.0001736,2]
[400477585,1767630639044,-754.32,0.00017381,2]
[400477586,1767630639053,-300.09,0.00017414,2]
[400477587,1767630639063,-500.0,0.00017445,2]
[400477588,1767630639073,-166.66,0.00017616,2]
[400477589,1767630639083,-463.0,0.00017618,2]
[400477590,1767630639093,-754.32,0.00017655,2]
[400477591,1767630639102,-160.0,0.0001768,2]
[400477592,1767630639112,-345.0,0.00017699,2]
[400477593,1767630639122,-1000.0,0.000177,2]
[400477594,1767630639132,-150.0,0.0001772,2]
[400477595,1767630639142,-501.43294385,0.00017721,2]
[400477596,1767630639152,-500.85459949,0.00017721,2]
[400477597,1767630639163,-1000.0,0.00017721,2]
[400477598,1767630639173,-1001.70391837,0.00017721,2]
[400477599,1767630639183,-1000.0,0.00017721,2]
[400477600,1767630639195,-1000.0,0.00017721,2]
[400477601,1767630639205,-1000.0,0.00017721,2]
[400477602,1767630639215,-327.2396163,0.00017721,2]